Cogmind - Beta 14 @@@ ROGUE MODE // 2024.08.16 @ 11:12:26 Player: Zeia Result: Destroyed by P-60 Hacker with Shock Rifle Performance ------------- Evolutions (0) 0 Regions Visited (3) 600 Robots Destroyed (19) 95 Value Destroyed (410) 410 Prototype IDs (2) 40 Alien Tech Used (0) 0 Bonus (0) 0 TOTAL SCORE: 1145 Bonus ------- None Cogmind --------- Core Integrity 0/250 Matter 277/300 Energy 52/100 System Corruption 3% Temperature Warm (175) Movement Rolling (115) Ox1 Location -7/Recycling Parts ------- > --- POWER (1) -------- (None) > --- PROPULSION (2) --- Aluminum Leg Compact Wheel > --- UTILITY (2) ------ Large Storage Unit > --- WEAPON (2) ------- Heavy Laser Light Assault Rifle > --- INVENTORY (15) --- Subdweller Power Source Aluminum Leg Aluminum Leg Aluminum Leg Subdweller Monowheel Huge Storage Unit High-capacity Matter Pod (200) Subdweller Optics Subdweller Optics Scrap Shield Subdweller Laser Light Assault Rifle Mace Peak State ------------ > --- POWER ------------ Ion Engine > --- PROPULSION ------- Aluminum Leg Compact Wheel > --- UTILITY ---------- Large Storage Unit Medium Armor Plating > --- WEAPON ----------- Heavy Laser Mace > --- INVENTORY -------- Subdweller Power Source Aluminum Leg Aluminum Leg Aluminum Leg Subdweller Monowheel Huge Storage Unit High-capacity Matter Pod Subdweller Optics Subdweller Optics Scrap Shield Subdweller Laser Light Assault Rifle Light Assault Rifle [Rating: 14] Favorites ----------- Power Ion Engine Engine Ion Engine Propulsion Light Treads Treads Light Treads Leg Aluminum Leg Wheel Compact Wheel Utility Seismic Detector Device Seismic Detector Storage Large Storage Unit Protection Medium Armor Plating Weapon Light Assault Rifle Energy Gun Heavy Laser Ballistic Gun Light Assault Rifle Impact Weapon Mace Build | -11 -10 -10 -7 ------- Run | Yrd Mat Sub Rec Slots Evolved . | . . . . Power . | . . . . Propulsion . | . . . . Utility . | . . . . Weapon . | . . . . Parts Attached 21 | 7 3 9 2 Power 3 | 1 1 1 . Engine 3 | 1 1 1 . Core . | . . . . Reactor . | . . . . Propulsion 6 | 2 . 4 . Treads 2 | 2 . . . Leg 2 | . . 2 . Wheel 2 | . . 2 . Hover . | . . . . Flight . | . . . . Utility 4 | 2 1 1 . Device 1 | 1 . . . Storage 2 | 1 1 . . Processor . | . . . . Hackware . | . . . . Protection 1 | . . 1 . Artifact . | . . . . Weapon 8 | 2 1 3 2 Energy Gun 1 | . . . 1 Energy Cannon . | . . . . Ballistic Gun 6 | 2 1 2 1 Ballistic Cannon . | . . . . Launcher . | . . . . Special Weapon . | . . . . Impact Weapon 1 | . . 1 . Slashing Weapon . | . . . . Piercing Weapon . | . . . . Special Melee Weapon . | . . . . Unidentified Prototypes . | . . . . Parts Lost 6 | . . 4 2 Power 1 | . . 1 . Propulsion 1 | . . 1 . Utility 2 | . . 1 1 Weapon 2 | . . 1 1 Highest Loss Streak 3 | . . 3 2 To Critical Strikes . | . . . . Average Slot Usage (%) 98 | . 100 96 97 Engine 13 | . 14 12 12 Treads 23 | . 28 20 . Leg 1 | . . 1 14 Wheel 2 | . . 4 14 Device 10 | . 14 1 . Storage 14 | . 14 14 14 Protection 3 | . . 11 13 Ballistic Gun 26 | . 28 27 14 Impact Weapon 1 | . . . 11 Peak Build Rating 14 | 7 8 11 14 Average Rating 8 | 5 7 8 11 On Entrance 6 | . 7 8 11 Naked Turns . | . . . . Heaviest Build 35 | 12 29 35 35 Greatest Support 40 | 40 40 40 16 Greatest Overweight (x) 2 | 1 . 2 2 Average Overweight (x) . | . . . 2 Largest Inventory Capacity 15 | 8 15 15 15 Average Capacity 12 | 7 11 15 15 Most Carried 15 | 6 12 15 15 Average Carried 10 | 4 9 12 14 Final Capacity 15 | 8 15 15 15 Final Carried 15 | 6 12 15 14 Class Distribution -------------------- 100% | Mutant Dominant Class ---------------- Mutant | -10/Materials Mutant | -10/Subcaves Mutant | -7/Recycling Resources | -11 -10 -10 -7 ----------- Run | Yrd Mat Sub Rec Matter Collected 733 | 298 171 216 48 Remotely . | . . . . Salvage Created 584 | 123 187 110 164 Parts 53 | 8 22 15 8 Haulers Intercepted . | . . . . Recyclers Shooed . | . . . . Parts Field Recycled . | . . . . Retrieved Matter . | . . . . Parts Self-Destructed 9 | . . 9 . Prevented . | . . . . Kills | -11 -10 -10 -7 ------- Run | Yrd Mat Sub Rec Combat Hostiles Destroyed 14 | . 7 4 3 Guns 14 | . 7 4 3 Classes Destroyed 9 | 2 4 1 2 Worker 1 | . 1 . . Tunneler 1 | 1 . . . Recycler 1 | 1 . . . Watcher 2 | . 2 . . Swarmer 8 | . 6 2 . Grunt 1 | . 1 . . Duelist 1 | . . . 1 Programmer 2 | . . . 2 Subdweller 2 | . . 2 . Best Kill Streak 4 | 2 4 2 3 Combat Bots Only 3 | . 3 2 3 Max Kills in Single Turn 1 | 1 1 1 1 Gunslinging . | . . . . Exploded . | . . . . Melee . | . . . . Uniques/NPCs Destroyed . | . . . . Combat | -11 -10 -10 -7 -------- Run | Yrd Mat Sub Rec Hostile Shots Fired 150 | . 41 82 27 Missed 46 | . 10 30 6 Damage Taken 1227 | . 256 593 378 Core 256 | . 53 94 109 Absorbed by Shields . | . . . . Core Remaining (%) 100 | 100 . . . Volleys Fired 57 | 7 24 18 8 Largest 2 | 2 2 2 2 Hottest 89 | 40 40 40 89 Shots Fired 111 | 14 48 33 16 Gun 111 | 14 48 33 16 Cannon . | . . . . Launcher . | . . . . Special . | . . . . Kinetic 103 | 14 48 33 8 Thermal 8 | . . . 8 Explosive . | . . . . Electromagnetic . | . . . . Robot Hit Streak 26 | 5 5 26 5 Robot Miss Streak 6 | 1 6 1 2 Penetration Max . | . . . . Secondary Targets 3 | . 1 . 2 Max Gunslinging Chain 1 | . 1 . 1 Shots Hit Robots 76 | 10 27 28 11 Core Hits 33 | 4 12 11 6 Critical Kills . | . . . . Critical Parts Destroyed . | . . . . Critical Strikes . | . . . . Melee Attacks 1 | . . 1 . Impact 1 | . . 1 . Slashing . | . . . . Piercing . | . . . . Sneak Attacks . | . . . . Combat Hostiles . | . . . . Follow-up Attacks . | . . . . Damage Inflicted 841 | 107 316 227 191 Guns 841 | 107 316 227 191 Cannons . | . . . . Explosions . | . . . . Melee . | . . . . Ramming . | . . . . Kinetic 687 | 107 316 227 37 Thermal 154 | . . . 154 Explosive . | . . . . Electromagnetic . | . . . . Impact . | . . . . Slashing . | . . . . Piercing . | . . . . Highest Corruption 3 | . 1 1 3 Average Corruption 1 | . 1 1 1 Corruption Purged . | . . . . Corruption Blocked . | . . . . Effects 9 | . 5 4 . Message Errors 2 | . 1 1 . Heat Flow Errors 3 | . 1 2 . Parts Rejected 1 | . . 1 . Data Loss (minor) 2 | . 2 . . Alerts 1 | . 1 . . Overload Shots . | . . . . Overflow Damage . | . . . . Projectiles . | . . . . Explosions . | . . . . Melee . | . . . . Knockbacks . | . . . . Impact . | . . . . Kinetic . | . . . . Secondary . | . . . . Self-Inflicted Damage . | . . . . Shots . | . . . . Rammed . | . . . . Targets Rammed . | . . . . Kicked . | . . . . Crushed . | . . . . Highest Temperature 200 | . 106 103 200 Average Temperature 82 | . 41 46 114 Received Heat Transfer 156 | . 12 144 . Siege Activations . | . . . . Robots Corrupted . | . . . . Combat Hostiles . | . . . . Parts Fried . | . . . . Impact Corruptions . | . . . . Robots Melted . | . . . . Combat Hostiles . | . . . . Parts Melted 1 | . . . 1 Heat Transferred 259 | . . . 259 Parts Sabotaged . | . . . . Parts Stolen . | . . . . Parts Stripped . | . . . . Power Chain Reactions . | . . . . Alert | -11 -10 -10 -7 ------- Run | Yrd Mat Sub Rec Peak Influence 190 | 10 190 . 73 Initial 43 | . 6 . 43 Average 44 | 3 48 . 44 Maximum Alert Level . | . . . . Low Security (%) 100 | 100 100 . 100 Level 1 . | . . . . Level 2 . | . . . . Level 3 . | . . . . Level 4 . | . . . . Level 5 . | . . . . High Security . | . . . . Max Security . | . . . . Squads Dispatched 2 | . 2 . . Investigation 2 | . 2 . . Extermination . | . . . . Reinforcement . | . . . . Assault . | . . . . Garrison . | . . . . Intercept . | . . . . Searches Triggered . | . . . . Construction Impeded . | . . . . Haulers Reinforced . | . . . . Active Scanning Responses . | . . . . Cargo Convoy Interrupts . | . . . . Stealth | -11 -10 -10 -7 --------- Run | Yrd Mat Sub Rec Distress Signals 1 | . 1 . . Communications Jammed . | . . . . Distress Signals . | . . . . Times Spotted 28 | . 11 12 5 Peak Tracking Total 8 | . 5 8 5 Tactical Retreats 3 | . 1 2 . Traps | -11 -10 -10 -7 ------- Run | Yrd Mat Sub Rec Traps Triggered 3 | . 3 . . Indirectly . | . . . . Trap Hack Attempts . | . . . . Triggered . | . . . . Disarmed . | . . . . Reprogrammed . | . . . . Reused . | . . . . Traps Extracted . | . . . . Installed . | . . . . Triggered . | . . . . Machines | -11 -10 -10 -7 ---------- Run | Yrd Mat Sub Rec Machines Disabled . | . . . . Max in Single Turn . | . . . . Machines Repaired . | . . . . Machines Dismantled . | . . . . Machines Sabotaged . | . . . . Overloaded Fab Kills . | . . . . Hacking | -11 -10 -10 -7 --------- Run | Yrd Mat Sub Rec Machines Accessed 5 | . 4 . 1 Terminals 4 | . 3 . 1 Fabricators . | . . . . Repair Stations . | . . . . Recycling Units 1 | . 1 . . Scanalyzers . | . . . . Garrison Access . | . . . . Total Hacks 10 | . 9 . 1 Successful 4 | . 3 . 1 Failed 6 | . 6 . . Catastrophic 2 | . 2 . . Database Lockouts . | . . . . Manual 5 | . 5 . . Terminals 9 | . 8 . 1 Fabricators . | . . . . Repair Stations . | . . . . Recycling Units 1 | . 1 . . Scanalyzers . | . . . . Garrison Access . | . . . . Terminal Hacks 4 | . 3 . 1 Record 1 | . . . 1 Robot Analysis 2 | . 2 . . Prototype ID Bank 1 | . 1 . . Fabricator Hacks . | . . . . Repair Station Hacks . | . . . . Recycling Unit Hacks . | . . . . Scanalyzer . | . . . . Garrison Access Hacks . | . . . . Unauthorized Hacks . | . . . . Terminals . | . . . . Fabricators . | . . . . Repair Stations . | . . . . Recycling Units . | . . . . Scanalyzers . | . . . . Garrison Access . | . . . . Data Cores Recovered . | . . . . Used . | . . . . Hacking Detections 5 | . 4 . 1 Full Trace Events . | . . . . Feedback Events . | . . . . Feedback Blocked . | . . . . Robot Schematics Acquired . | . . . . Robots Built . | . . . . Authchips . | . . . . Time . | . . . . Total Robot Build Rating . | . . . . Part Schematics Acquired . | . . . . Parts Built . | . . . . Authchips . | . . . . Time . | . . . . Total Part Build Rating . | . . . . Parts Repaired . | . . . . Time . | . . . . Parts Recycled . | . . . . Recycled Matter . | . . . . Retrieved Matter . | . . . . Retrieved Components . | . . . . Parts Scanalyzed . | . . . . Part Schematics Acquired . | . . . . Parts Damaged . | . . . . Bothacking | -11 -10 -10 -7 ------------ Run | Yrd Mat Sub Rec Used RIF Installer . | . . . . Robots Hacked . | . . . . Non-combat . | . . . . Combat . | . . . . Robot Hacks Applied . | . . . . Relay Couplers Released . | . . . . Fabnet Peak Effective % . | . . . . Robots Rewired . | . . . . Allies Hacked . | . . . . Hacks Repelled . | . . . . Allies | -11 -10 -10 -7 -------- Run | Yrd Mat Sub Rec Total Allies . | . . . . Largest Group . | . . . . Highest-Rated Group . | . . . . Highest-Rated Ally . | . . . . Total Orders . | . . . . Ally Attacks . | . . . . Total Damage . | . . . . Kills . | . . . . Allies Corrupted . | . . . . Allies Melted . | . . . . Intel | -11 -10 -10 -7 ------- Run | Yrd Mat Sub Rec Robot Analysis Total 2 | . 2 . . Derelict Logs Recovered . | . . . . Drone Launches . | . . . . Drone Recoveries . | . . . . Exploration | -11 -10 -10 -7 ------------- Run | Yrd Mat Sub Rec Turns Passed 1629 | 115 1054 316 144 Spaces Moved 847 | 46 551 158 92 Core 4 | 4 . . . Treads 685 | 42 551 92 . Legs . | . . . . Wheels 158 | . . 66 92 Hover . | . . . . Flight . | . . . . Fastest Speed 50 | 50 160 130 130 Average Speed 154 | 153 160 150 130 Slowest Speed 240 | 160 160 240 130 Overloaded Moves . | . . . . Propulsion Burnouts . | . . . . Robots Hopped . | . . . . Cave-ins Triggered . | . . . . Exploration Rate (%) 32 | 4 92 11 22 Regions Visited 3 Branch Regions 2 Pre-discovered Areas . | . . . . Known Exits Taken . | . . . . Unknown Exits Taken 3 | 1 1 1 . Scrap Searched . | . . . . Spaces Dug 1 | . . 1 . Terrain Destroyed 1 | . . 1 . Melee 1 | . . 1 . Projectile . | . . . . AOE . | . . . . Terrain Rammed . | . . . . Walls Destroyed . | . . . . Machines Disabled . | . . . . Actions | -11 -10 -10 -7 --------- Run | Yrd Mat Sub Rec Total 1065 | 74 682 205 104 Wait 114 | 9 92 13 . Move 844 | 45 550 157 92 Hop . | . . . . Pick Up 22 | 6 8 7 1 Fast Attach 7 | 7 . . . Attach 6 | . . 5 1 Detach . | . . . . Swap 8 | . 3 4 1 Drop 6 | . 5 . 1 Fire 57 | 7 24 18 8 Melee 1 | . . 1 . Ram . | . . . . Kick . | . . . . Crush . | . . . . Escape Stasis . | . . . . Rewire . | . . . . Trap . | . . . . Miscellaneous . | . . . . Route ------- -11/Scrapyard -10/Materials (discovered 6 exits: [*Mat x3] / [*Min x2] / [*Sub]) -10/Subcaves -7/Recycling History --------- Turn | Location | Event 24 | -11/Scrapyard | Discovered new exit (range 16) 116 | -11/Scrapyard | Entered Materials 307 | -10/Materials | Build established: Mutant 509 | -10/Materials | Discovered new exit (range 15) 554 | -10/Materials | Discovered new exit (range 14) 782 | -10/Materials | Discovered new exit (range 16) 948 | -10/Materials | Discovered new exit (range 5) 994 | -10/Materials | Discovered new exit (range 8) 1162 | -10/Materials | Discovered new exit (range 5) 1170 | -10/Materials | Entered Subcaves 1180 | -10/Subcaves | Ambushed by Subdwellers from Twisted Machinery 1214 | -10/Subcaves | Core integrity fell below 50% 1242 | -10/Subcaves | Lost 3 parts (1p1u1w) 1474 | -10/Subcaves | Discovered new exit (range 9) 1486 | -10/Subcaves | Entered Recycling 1607 | -7/Recycling | Core integrity fell below 20% 1630 | -7/Recycling | Destroyed by P-60 Hacker with Shock Rifle Last Messages --------------- 01567_ Acquired 48 matter. 01576_ Dropped Lgt. Treads. 01577_ Acquired Hvy. Laser. 01603_ P-60 Hacker springs to life. 01604_ L-41 Fighter springs to life. 01605_ Lgt. Assault Rifle destroyed. 01611_ Ion Engine severed. 01613_ L-41 Fighter destroyed. 01621_ P-60 Hacker destroyed. 01621_ Switching to secondary target: P-60 Hacker. 01624_ R-06 Scavenger collects Mic. Nuclear Core. 01626_ R-06 Scavenger collects Ion Engine. 01628_ Med. Armor Plating destroyed. 01629_ R-06 Scavenger collects Remote Datajack. 01630_ Target Analyzer melted. 01630_ P-60 Hacker destroyed. 01630_ Switching to secondary target: P-60 Hacker. Map ----- +----------------------------------------------------+ | ?????????????????????????????????????????????????? | | ?????????????????????????????????????????????????? | | ?????????????????????????????????????????????????? | | ?????????????????????????????????????????????????? | | ?????????????????????????????????????????????????? | | ?????????????????????????????????????????????????? | | ?????????????????????????????????????????????????? | | ?????????????????????????????????????????????????? | | ?????????????????????????????????????????????????? | | ?????????????????????????????????????????????????? | | ?????????????????????????????????????????????????? | | ?????????????????????????????????????????????????? | | ?????????????????????????????????????????????????? | | ?????????????????????????????????????????????????? | | ?????????????????????????????????????????????????? | | ?????????????????????###########?????????????????? | | ?????????????????????# ! % #?????????????????? | | ?????????????????????# #?????????????????? | | ?????????????????????# ! g#?????????????????? | | ?????????????????????# / u #?????????????????? | | ?????????????????????# % !th!#?????????????????? | | ?????????????????????# aa #?????????????????? | | ?????????????????????# Yt !#?????????????????# | | ?????????????????????#% rp #?????????????????# | | ?????????????? Y" # #####p####################??# | | ???????????????""" + r@%=!r + ] #### | | ??????????# #######+## #### / ##"" | | ????????????????????# # #??#= ##"T | | ????????????????????# # #??# #### | | ????????????????????# # #??# / #??# | | ????????????????????# # #### #??# | | ????????????????????# + + % #??# | | ????????????????????# # #[! ! #?## | | ????????????????????# # #######+##### | | ????????????????????# # | | ????????????????????# + | | ????????????????????# # | | ????????????????????# # ################## | | ????????????????????# # #???????????####### | | ????????????????????# + #???????????# | | ????????????????????# # #???????????# "" | | ????????????????????# # #???????????# "" | | ????????????????????# ? +???????????# "" | | ????????????????????# ? ????????????# "" | | ???????????????????? ? ????????????# "" | | ??????????????????????? ? ????????????# | | ????????????????????????? ?????????????#"" | | ?????????????????????????????????????????#"Y | | ?????????????????????????????????????????#"" | | ?????????????????????????????????????????### | +----------------------------------------------------+ Best States ------------- Heat Dissipation 25 Energy Generation 10 Energy Capacity 250 Matter Stores 300 Matter Capacity 300 Sight Range 16 Terrain Scan Density 10 Armor Coverage 225 Evasion (%) 40 Recoil Reduction 2 Item Schematics ----------------- None Robot Schematics ------------------ None Fabricated ------------ Nothing Alien Tech Used ----------------- None Achievements -------------- None Challenges ------------ None Game ------ Seed PoweredJunkNetwork Manual? 0 Play Time 00:15:22 Cumulative 42.7 hours Start 2024.08.16 @ 08:46:42 End 2024.08.16 @ 11:12:26 Sessions 2 Manual Loads 0 Difficulty Rogue Special Mode None Game No. 40 Rogue 40 Adventurer 0 Explorer 0 Win Type - Total 0 Types 0/0/0/0/0/0/0/0/0 Lore% 38 Gallery% 35 Achievement% 29 Wizard Run 0 Options --------- Layout 1 ASCII 0 Keyboard 1 Movement Vi Keybinds 0 Fullscreen 1 Font 48/Smallcaps Map View 50x35 Zoom Use 0% Tactical HUD 1 Map Filters NONE Filters NONE Steam 1 RUN: f1105ca2-8ae3-4f83-8bb2-d83dc1e142bf